bitfinex/quotes_SOLUSD_20251024
["timestamp","ask_amount","ask_price","bid_price","bid_amount"]
[1761273099762,4.54568032,191.93,191.89,5.21131898]
[1761273099969,3.83568032,191.92,191.89,5.21131898]
[1761273100268,0.71,191.93,191.9,0.67]
[1761273100467,4.54536417,191.93,191.9,0.67]
[1761273100777,4.54536417,191.93,191.9,5.88094736]
[1761273102349,4.49536417,191.93,191.9,0.72]
[1761273102549,6.16650357,191.93,191.9,0.72]
[1761273102778,3.83536417,191.92,191.9,0.72]
[1761273103282,3.83536417,191.92,191.9,5.93101022]
[1761273104878,3.83536417,191.92,191.88,16.08806578]
[1761273105087,4.49536417,191.92,191.89,0.72]
[1761273105381,1.6711394,191.9,191.86,5.21189488]
[1761273105587,1.6711394,191.88,191.86,5.21189488]
[1761273107188,1.6711394,191.88,191.86,0.72]
[1761273107403,0.66,191.89,191.86,0.72]
[1761273107682,1.6711394,191.88,191.85,5.21240552]
[1761273107891,1.6711394,191.88,191.86,10.87647521]
[1761273108188,2.3311394,191.87,191.85,5.21240552]
[1761273108377,1.6711394,191.86,191.85,5.21240552]
[1761273109365,2.3311394,191.87,191.84,18.96385265]
[1761273109561,1.6711394,191.87,191.84,18.96385265]
[1761273111590,1.6711394,191.85,191.79,0.72]
[1761273111755,0.66,191.86,191.78,5.21428884]
[1761273111958,1.6711394,191.79,191.78,10.87647521]
[1761273112161,1.6711394,191.79,191.77,0.72]
[1761273112368,0.66,191.82,191.77,0.72]
[1761273112566,1.6711394,191.81,191.78,10.87647521]
[1761273112966,2.3311394,191.81,191.78,10.87647521]
[1761273113361,2.3311394,191.8,191.77,5.21451058]
[1761273113566,2.3311394,191.8,191.76,16.8113271]
[1761273113969,1.6711394,191.81,191.77,0.72]
[1761273114481,2.3311394,191.81,191.77,0.72]
[1761273115281,2.3311394,191.81,191.78,5.21430806]
[1761273116185,2.3311394,191.8,191.77,5.21457996]
[1761273116382,2.3311394,191.8,191.77,5.93457996]
[1761273116686,1.6711394,191.81,191.78,0.72]
[1761273117186,2.3311394,191.82,191.78,0.72]
[1761273117481,1.6711394,191.82,191.78,0.72]
[1761273117680,2.3311394,191.82,191.78,0.72]
[1761273118066,1.6711394,191.82,191.79,5.21403618]
[1761273118271,2.3311394,191.82,191.79,5.21403618]
[1761273118661,0.66,191.81,191.79,5.21403618]
[1761273119074,1.6711394,191.82,191.78,11.59647521]
[1761273119278,2.3311394,191.82,191.78,11.59647521]
[1761273119786,2.3311394,191.82,191.79,0.72]
[1761273120662,1.6711394,191.82,191.8,5.21376433]
[1761273120863,2.3311394,191.82,191.8,5.21376433]
[1761273121785,0.66,191.81,191.79,5.21403618]
[1761273123394,1.6711394,191.84,191.8,11.59647521]
[1761273123566,2.3311394,191.86,191.81,0.72]
[1761273123971,0.66,191.85,191.81,0.72]
[1761273124173,22.88,191.89,191.81,0.72]
[1761273124428,12.08864239,191.98,191.93,10.87647521]
[1761273124583,12.08864239,191.98,191.95,1.6711394]
[1761273124888,12.08864239,191.98,191.96,1.6711394]
[1761273125083,12.08864239,191.98,191.95,10.87647521]
[1761273125460,12.08864239,191.98,191.94,0.72]
[1761273125461,12.08864239,191.98,191.97,5.20914726]
[1761273125881,0.2,191.98,191.97,18.47676187]
[1761273126188,0.2,191.98,191.97,16.80562247]
[1761273126375,0.2,191.98,191.97,18.47676187]
[1761273126889,0.2,191.98,191.97,16.80562247]
[1761273127069,0.2,191.98,191.97,18.47676187]
[1761273128391,1e-08,191.98,191.97,18.47676187]
[1761273130689,1e-08,191.99,191.98,11.59647521]
[1761273130881,1e-08,192.01,192.0,33.75647521]
[1761273131075,1e-08,192.01,192.0,37.61958734]
[1761273131277,1e-08,192.01,192.0,38.31958734]
[1761273131786,0.2,192.05,192.03,33.75647521]
[1761273132097,0.2,192.05,192.03,36.64836657]
[1761273132887,1e-08,192.06,192.04,11.57647521]
[1761273133067,1e-08,192.06,192.05,13.06831234]
[1761273133272,1e-08,192.06,192.05,13.76831234]
[1761273134767,1e-08,192.06,192.05,18.97528968]
[1761273136177,1e-08,192.08,192.07,10.87647521]
[1761273136372,1e-08,192.08,192.07,13.76825812]
[1761273136681,1e-08,192.09,192.08,11.57647521]
[1761273136992,1e-08,192.09,192.08,13.24761461]
[1761273137379,1e-08,192.09,192.08,13.76823101]
[1761273138099,1e-08,192.09,192.08,18.9743951]
[1761273140581,0.72000001,192.09,192.08,17.7537787]
[1761273140998,1e-08,192.09,192.08,17.7537787]
[1761273141989,1e-08,192.09,192.08,40.6337787]
[1761273145103,1e-08,192.09,192.08,41.3337787]
[1761273145685,1e-08,192.09,192.08,30.45730349]
[1761273146101,1e-08,192.09,192.08,41.3337787]
[1761273149213,1e-08,192.09,192.08,40.6337787]
[1761273149509,1e-08,192.09,192.08,41.3337787]
[1761273149711,1e-08,192.09,192.08,40.6337787]
[1761273151797,1e-08,192.09,192.08,41.3337787]
[1761273154819,1e-08,192.09,192.08,19.38472159]
[1761273156102,0.2,192.11,192.1,33.75647521]
[1761273156421,0.2,192.11,192.1,13.9991197]
[1761273156712,0.2,192.11,192.1,19.90474177]
[1761273157111,0.2,192.11,192.1,42.78474177]
[1761273157316,1e-08,192.12,192.11,11.57647521]
[1761273157516,1e-08,192.12,192.11,14.1785575]
[1761273159006,1e-08,192.12,192.11,19.3839086]
[1761273160120,1e-08,192.14,192.13,33.75647521]
[1761273160297,1e-08,192.14,192.13,37.57903842]
[1761273161115,1e-08,192.15,192.14,10.87647521]
[1761273161309,1e-08,192.15,192.14,14.1785575]
[1761273162510,1e-08,192.15,192.14,19.38309585]
[1761273162707,23.08,192.26,192.2,10.87647521]
[1761273162708,0.2,192.26,192.2,10.87647521]
[1761273162910,0.2,192.26,192.23,13.4785575]
[1761273162911,0.72,192.24,192.23,13.4785575]
[1761273163226,4.5011443,192.24,192.23,13.4785575]
[1761273163834,3.7811443,192.24,192.23,13.4785575]
[1761273164040,0.2,192.26,192.23,11.57647521]
[1761273164237,0.2,192.26,192.25,9.42647521]
[1761273164405,8.0033722,192.26,192.18,5.20319979]
[1761273164605,2.60208229,192.22,192.17,22.88]
[1761273164908,2.60208229,192.23,192.17,22.88]
[1761273165231,2.80208229,192.26,192.2,2.60208229]
[1761273165427,0.2,192.26,192.2,2.60208229]
[1761273165771,0.2,192.26,192.21,2.60208229]
[1761273166431,0.2,192.26,192.22,10.87647521]
[1761273167006,0.2,192.26,192.22,16.0786898]
[1761273167522,0.2,192.26,192.22,18.68077209]
[1761273168240,0.2,192.26,192.22,16.0786898]
[1761273169035,4.00795725,192.26,192.22,16.0786898]
[1761273169229,0.2,192.26,192.22,16.0786898]
[1761273169608,4.01469503,192.26,192.22,16.0786898]
[1761273170320,3.81469503,192.25,192.22,16.0786898]
[1761273170526,3.81469503,192.24,192.21,22.88]
[1761273170714,6.41677732,192.23,192.19,10.87647521]
[1761273171025,3.81469503,192.22,192.19,10.87647521]
[1761273171226,3.81469503,192.22,192.2,5.20291363]
[1761273171416,3.81469503,192.21,192.2,5.20291363]
[1761273171909,3.81469503,192.22,192.2,5.20291363]
[1761273172108,3.81469503,192.21,192.2,5.20291363]
[1761273172820,3.81469503,192.21,192.19,5.20318434]
[1761273173128,2.60208229,192.24,192.19,5.20318434]
[1761273173314,3.82014722,192.23,192.19,5.20318434]
[1761273173514,3.82014722,192.22,192.19,5.20318434]
[1761273173722,3.82014722,192.21,192.19,5.20318434]
[1761273174019,5.40133679,192.26,192.19,5.20318434]
[1761273174213,2.60208229,192.23,192.19,5.20318434]
[1761273174419,3.82239574,192.22,192.19,5.20318434]
[1761273174725,3.82239574,192.21,192.19,5.20318434]
[1761273174927,2.60208229,192.23,192.19,5.20318434]
[1761273175109,3.82368332,192.22,192.19,5.20318434]
[1761273175314,3.82368332,192.21,192.19,5.20318434]
[1761273175629,2.60208229,192.24,192.19,5.20318434]
[1761273175930,3.82525436,192.23,192.19,5.20318434]
[1761273176125,3.82525436,192.22,192.19,5.20318434]
[1761273176332,3.82525436,192.21,192.19,5.20318434]
[1761273176530,3.82587018,192.2,192.17,5.2034808]
[1761273176730,6.42795247,192.19,192.16,5.2039758]
[1761273176923,3.82587018,192.18,192.16,5.2039758]
[1761273178531,3.82587018,192.18,192.15,16.08059105]
[1761273179227,2.60208229,192.19,192.15,16.08059105]
[1761273179831,3.8268154,192.18,192.15,16.08059105]
[1761273180534,2.60208229,192.2,192.15,16.08059105]
[1761273180746,3.82869159,192.19,192.15,16.08059105]
[1761273181714,2.60208229,192.17,192.15,5.20411584]
[1761273181919,2.60208229,192.17,192.13,28.0845554]
[1761273182230,2.60208229,192.16,192.13,5.2045554]
[1761273182407,2.60208229,192.16,192.14,22.88]
[1761273182813,2.60208229,192.16,192.13,5.2045554]
[1761273183116,2.60208229,192.15,192.13,5.2045554]
[1761273183518,22.88,192.22,192.14,3.30208229]
[1761273183713,3.83323047,192.21,192.17,2.60208229]
[1761273183937,3.83323047,192.2,192.15,14.1785575]
[1761273184132,2.60208229,192.19,192.13,13.4785575]
[1761273184339,2.60208229,192.2,192.14,2.60208229]
[1761273184743,2.60208229,192.18,192.13,10.87647521]
[1761273184932,2.60208229,192.17,192.13,10.87647521]
[1761273185330,2.60208229,192.15,192.12,5.20508015]
[1761273185829,2.60208229,192.17,192.12,11.57647521]
[1761273186023,2.60208229,192.16,192.12,10.87647521]
[1761273186945,2.60208229,192.16,192.12,16.08128485]
[1761273187944,2.60208229,192.17,192.12,16.08128485]
[1761273188147,2.60208229,192.17,192.12,16.78128485]
[1761273188645,5.20266079,192.21,192.13,0.7]
[1761273188852,2.60208229,192.17,192.12,29.09398524]
[1761273189750,2.60208229,192.17,192.12,29.79398524]
[1761273190538,22.88,192.21,192.13,3.30208229]
[1761273190750,3.83485747,192.2,192.13,3.30208229]
[1761273191031,2.60208229,192.19,192.14,0.7]
[1761273191353,3.83485747,192.18,192.14,0.7]
[1761273192024,3.83485747,192.18,192.15,5.20426749]
[1761273192542,2.60208229,192.19,192.15,5.89426749]
[1761273193252,102.0,192.23,192.16,0.69]
[1761273193444,6.43837451,192.22,192.16,0.69]
[1761273193642,6.43837451,192.21,192.16,0.69]
[1761273193958,6.43837451,192.2,192.16,0.69]
[1761273194135,2.60208229,192.2,192.17,5.20372586]
[1761273195055,102.0,192.23,192.17,0.69]
[1761273195358,2.60208229,192.24,192.19,10.87647521]
[1761273195550,2.60208229,192.24,192.19,33.75647521]
[1761273195760,0.2,192.26,192.2,0.69]
[1761273196066,2.60208229,192.25,192.2,0.69]
[1761273196429,2.80208229,192.26,192.21,13.4785575]
[1761273196641,3.83938808,192.25,192.21,13.4785575]
[1761273196849,2.80208229,192.26,192.22,0.69]
[1761273197248,2.80208229,192.26,192.23,5.20210164]
[1761273199666,2.80208229,192.26,192.23,5.89210164]
[1761273202941,2.60208229,192.24,192.2,0.69]
[1761273203779,2.60208229,192.24,192.21,5.20264294]
[1761273205444,2.60208229,192.22,192.19,5.20303888]
[1761273205640,2.60208229,192.2,192.17,10.87647521]
[1761273205968,2.60208229,192.19,192.17,10.87647521]
[1761273207557,2.60208229,192.2,192.18,5.20345509]
[1761273208569,2.60208229,192.21,192.17,5.20372586]
[1761273209068,2.60208229,192.21,192.17,5.85372586]
[1761273209259,2.60208229,192.2,192.17,5.20372586]
[1761273209755,2.60208229,192.2,192.17,5.85372586]
[1761273210274,2.60208229,192.21,192.17,5.85372586]
[1761273210480,2.60208229,192.21,192.19,5.20318434]
[1761273210649,2.60208229,192.22,192.19,5.20318434]
[1761273210967,2.60208229,192.22,192.16,10.87647521]
[1761273211164,130.08157831,192.25,192.16,11.52647521]
[1761273211365,2.60208229,192.2,192.16,11.52647521]
[1761273211765,2.60208229,192.2,192.17,0.65]
[1761273212181,2.60208229,192.2,192.17,5.85372586]
[1761273212776,2.60208229,192.2,192.18,0.65]
[1761273213673,2.60208229,192.21,192.19,5.20318434]
[1761273215470,5.20193964,192.24,192.19,5.20318434]
[1761273215676,2.60208229,192.21,192.19,5.20318434]
[1761273216482,2.60208229,192.21,192.17,5.20372586]
[1761273216660,1.66481396,192.21,192.17,5.85372586]
[1761273218557,1.66481396,192.21,192.18,5.85324961]
[1761273220674,1.66481396,192.21,192.16,12.54128917]
[1761273220881,1.66481396,192.22,192.17,5.85372586]
[1761273221059,3.84068349,192.21,192.17,5.85372586]
[1761273221261,3.84068349,192.21,192.18,0.7]
[1761273222093,5.50549745,192.21,192.19,5.20318434]
[1761273222398,3.84068349,192.2,192.19,5.20318434]
[1761273224101,3.84068349,192.2,192.19,5.90318434]
[1761273224399,5.50549745,192.21,192.19,5.90318434]
[1761273224591,3.84068349,192.2,192.19,5.20318434]
[1761273225302,3.84068349,192.2,192.19,0.7]
[1761273225602,3.84068349,192.2,192.17,5.20372586]
[1761273225810,3.84068349,192.2,192.18,0.7]
[1761273226013,1.66481396,192.21,192.18,0.7]
[1761273226320,3.84170345,192.2,192.18,0.7]
[1761273226692,1.66481396,192.22,192.18,0.7]
[1761273226895,3.84173821,192.21,192.18,0.7]
[1761273227094,3.84173821,192.2,192.18,0.7]
[1761273227391,1.66481396,192.23,192.18,0.7]
[1761273227592,3.84207908,192.22,192.19,5.20318434]
[1761273227813,3.84207908,192.21,192.19,5.20318434]
[1761273228013,3.84207908,192.2,192.19,5.90318434]
[1761273228718,3.84207908,192.22,192.19,0.7]
[1761273229021,3.84207908,192.21,192.2,0.7]
[1761273231026,3.84207908,192.21,192.18,0.7]
[1761273231201,3.84207908,192.21,192.17,5.90372586]
[1761273231400,3.84207908,192.21,192.18,0.7]
[1761273231912,5.50689304,192.21,192.17,5.20372586]
[1761273232107,5.50689304,192.2,192.17,5.90372586]
[1761273232308,1.66481396,192.2,192.17,5.90372586]
[1761273232710,3.84413271,192.19,192.18,0.7]
[1761273232914,3.84413271,192.19,192.18,5.90345509]
[1761273233413,3.84413271,192.2,192.18,5.90345509]
[1761273233726,3.84413271,192.19,192.18,5.90345509]
[1761273233910,3.84413271,192.2,192.18,5.90345509]
[1761273234116,3.84413271,192.19,192.18,5.90345509]
[1761273234305,3.84413271,192.2,192.18,5.90345509]
[1761273234510,3.84413271,192.19,192.18,5.90345509]
[1761273234911,3.84413271,192.2,192.18,5.90345509]
[1761273235221,3.84413271,192.19,192.18,5.90345509]
[1761273235815,3.84413271,192.2,192.18,5.90345509]
[1761273236030,3.84413271,192.19,192.18,5.20345509]
[1761273236598,3.84413271,192.21,192.18,5.90345509]
[1761273236803,3.84413271,192.2,192.19,0.7]
[1761273238427,3.84413271,192.2,192.17,5.90372586]
[1761273238609,3.84413271,192.19,192.17,5.20372586]
[1761273238909,1.66481396,192.21,192.18,0.7]
[1761273239226,3.84731184,192.2,192.18,0.7]
[1761273239412,3.84731184,192.19,192.18,0.7]
[1761273240127,3.84731184,192.19,192.17,5.20372586]
[1761273240316,1.66481396,192.2,192.17,5.20372586]
[1761273240630,3.84715339,192.19,192.17,0.7]
[1761273241129,3.84715339,192.19,192.15,18.21493623]
[1761273241130,3.84715339,192.19,192.18,0.7]
[1761273241516,3.84715339,192.19,192.18,5.90345509]
[1761273242730,5.51196735,192.21,192.18,5.90345509]
[1761273242909,5.51196735,192.2,192.18,5.90345509]
[1761273243113,3.84715339,192.19,192.18,5.90345509]
[1761273244128,5.51196735,192.19,192.15,5.90426749]
[1761273244310,1.66481396,192.17,192.15,5.90426749]
[1761273244507,3.84715339,192.16,192.15,5.90426749]
[1761273244733,3.84715339,192.16,192.11,35.42128917]
[1761273244734,5.51196735,192.16,192.11,16.78160871]
[1761273245027,5.51196735,192.15,192.12,0.7]
[1761273245208,5.51196735,192.14,192.12,0.7]
[1761273245404,3.84715339,192.13,192.12,0.7]
[1761273245813,3.84715339,192.13,192.12,5.90508015]
[1761273246227,3.84715339,192.13,192.08,35.42128917]
[1761273246228,5.51196735,192.13,192.1,5.90547507]
[1761273246420,5.51196735,192.12,192.1,5.90547507]
[1761273246616,1.66481396,192.12,192.1,5.90547507]
[1761273246823,1.66481396,192.12,192.11,0.7]
[1761273247029,3.84499635,192.12,192.11,0.7]
[1761273248225,3.84499635,192.12,192.11,5.9053511]
[1761273248816,5.50981031,192.12,192.1,5.20560008]
[1761273249023,5.20400047,192.16,192.09,5.20588236]
[1761273249024,1.66481396,192.11,192.09,5.20588236]
[1761273249327,5.5069013,192.1,192.07,10.87647521]
[1761273249520,1.66481396,192.1,192.07,10.87647521]
[1761273249736,1.66481396,192.1,192.07,11.57647521]
[1761273250748,1.66481396,192.09,192.06,22.88]
[1761273250917,1.66481396,192.09,192.06,28.08669563]
[1761273251117,1.66481396,192.09,192.06,28.76669563]
[1761273251325,1.66481396,192.09,192.07,0.68]
[1761273251519,1.66481396,192.09,192.06,5.20669563]
[1761273251724,1.66481396,192.09,192.06,5.88669563]
[1761273251938,1.66481396,192.09,192.06,0.68]
[1761273252261,1.66481396,192.07,192.04,0.68]
[1761273252543,1.66481396,192.05,192.0,0.1]
[1761273252854,1.66481396,192.01,192.0,0.1]
[1761273256453,6.65925584,192.1,192.0,7.65311205]
[1761273256633,1.66481396,192.05,192.0,7.65311205]
[1761273256840,1.66481396,192.06,192.01,0.68]
[1761273257040,1.66481396,192.05,192.01,0.68]
[1761273258841,1.66481396,192.06,192.01,5.88805262]
[1761273259148,22.88,192.07,192.02,1.66481396]
[1761273259149,1.66481396,192.07,192.02,1.66481396]
[1761273259352,1.66481396,192.07,192.02,2.34481396]
[1761273259568,1.66481396,192.06,192.03,0.68]
[1761273259743,1.66481396,192.06,192.01,5.88805262]
[1761273259944,1.66481396,192.06,192.02,6.08887094]
[1761273260249,1.66481396,192.07,192.02,11.296589]
[1761273260844,1.66481396,192.07,192.03,0.68]
[1761273262654,124.88,192.1,192.06,1.66481396]
[1761273262655,22.88,192.1,192.06,1.66481396]
[1761273262841,1.66481396,192.13,192.07,1.66481396]
[1761273263030,1.66481396,192.12,192.06,2.34481396]
[1761273263351,1.66481396,192.12,192.07,0.68]
[1761273263659,1.66481396,192.12,192.07,16.31762412]
[1761273263866,1.66481396,192.12,192.07,21.52389647]
[1761273264036,1.66481396,192.12,192.08,0.68]
[1761273264450,1.66481396,192.11,192.08,16.31762412]
[1761273264655,1.66481396,192.12,192.08,16.31762412]
[1761273265259,1.66481396,192.12,192.09,0.68]
[1761273267538,1.66481396,192.13,192.09,0.68]
[1761273268152,1.66481396,192.12,192.09,0.68]
[1761273268855,1.66481396,192.13,192.09,0.68]
[1761273270957,1.66481396,192.13,192.09,5.88587549]
[1761273271364,1.66481396,192.13,192.1,0.66]
[1761273273271,1.66481396,192.13,192.1,5.86559755]
[1761273273568,1.66481396,192.14,192.11,0.66]
[1761273273940,1.66481396,192.14,192.11,5.86514968]
[1761273274160,103.66481396,192.15,192.11,5.86514968]
[1761273274336,1.66481396,192.16,192.12,0.66]
[1761273274541,1.66481396,192.14,192.12,0.66]
[1761273276360,1.66481396,192.14,192.12,5.86503402]
[1761273276558,1.66481396,192.15,192.12,5.86503402]
[1761273276759,2.60275059,192.14,192.12,5.86503402]
[1761273276968,2.60275059,192.14,192.13,0.66]
[1761273277463,2.60275059,192.14,192.11,15.63436433]
[1761273277669,2.60275059,192.14,192.11,16.29436433]
[1761273277848,2.60275059,192.13,192.11,16.29436433]
[1761273278177,2.60275059,192.12,192.1,5.20537199]
[1761273278668,2.60275059,192.12,192.1,5.86537199]
[1761273279448,2.60275059,192.11,192.1,5.20537199]
[1761273279649,2.60275059,192.11,192.09,15.63599405]
[1761273279969,2.60275059,192.12,192.09,21.50173816]
[1761273280268,2.60275059,192.12,192.1,0.66]
[1761273281066,2.60275059,192.13,192.1,5.86556883]
[1761273281571,2.60275059,192.13,192.1,0.66]
[1761273281742,2.60275059,192.13,192.1,5.86561136]
[1761273284476,2.60275059,192.12,192.1,5.86561136]
[1761273285768,2.60275059,192.12,192.11,0.65]
[1761273286270,2.60275059,192.13,192.11,0.65]
[1761273288373,3.83828119,192.12,192.11,0.65]
[1761273292265,3.83828119,192.12,192.11,5.8553511]
[1761273292467,2.60275059,192.15,192.11,5.8553511]
[1761273292666,3.84160849,192.14,192.12,0.65]
[1761273292869,6.44435908,192.14,192.11,5.8553511]
[1761273293180,6.44434779,192.13,192.11,5.8553511]
[1761273293378,2.60275059,192.13,192.11,5.8553511]
[1761273294585,3.84131727,192.12,192.11,0.65]
[1761273294777,6.44406786,192.12,192.1,5.20550368]
[1761273294977,2.60275059,192.12,192.1,5.85550368]
[1761273295278,2.60275059,192.12,192.11,0.65]
[1761273295473,6.4440997,192.12,192.11,0.65]
[1761273295781,3.84134911,192.12,192.11,0.65]
[1761273297074,2.60275059,192.14,192.11,0.65]
[1761273297267,3.84134911,192.13,192.11,0.65]
[1761273300165,3.84134911,192.12,192.11,0.65]
[1761273300663,3.84134911,192.13,192.11,0.65]
[1761273300856,3.84134911,192.12,192.11,5.8553511]
[1761273301062,3.84134911,192.13,192.11,5.8553511]
[1761273301281,3.84134911,192.12,192.11,5.2053511]
[1761273301478,3.84134911,192.13,192.11,5.2053511]
[1761273301672,3.84134911,192.12,192.11,5.2053511]
[1761273301977,3.84134911,192.12,192.09,5.20589307]
[1761273302190,2.60275059,192.14,192.09,5.20589307]
[1761273302366,3.84752111,192.13,192.1,0.65]
[1761273302561,3.84752111,192.12,192.1,5.85374714]
[1761273302760,2.60275059,192.14,192.1,0.65]
[1761273302962,3.84765697,192.13,192.11,5.85519453]
[1761273303259,22.88,192.18,192.12,2.60275059]
[1761273303469,3.8497517,192.17,192.16,2.60275059]
[1761273303677,10.88294223,192.2,192.16,2.60275059]
[1761273303869,3.85050062,192.19,192.17,0.65]
[1761273304191,3.84927963,192.18,192.17,16.27947719]
[1761273304369,3.84927963,192.19,192.17,21.4830489]
[1761273304570,3.84927963,192.18,192.17,20.8330489]
[1761273304795,3.84927963,192.19,192.17,20.8330489]
[1761273304995,3.84927963,192.18,192.17,20.8330489]
[1761273305287,13.48569282,192.2,192.17,20.8330489]
[1761273305493,3.84689255,192.19,192.17,20.8330489]
[1761273305687,3.84689255,192.19,192.18,0.65]
[1761273306482,3.84689255,192.19,192.18,5.85345509]
[1761273307777,3.84689255,192.19,192.18,0.65]
[1761273309285,3.84689255,192.19,192.18,5.85345509]
[1761273311186,10.88294223,192.2,192.18,5.85345509]
[1761273311394,10.88294223,192.2,192.19,0.72]
[1761273311696,14.72161275,192.2,192.19,0.72]
[1761273312198,10.88294223,192.2,192.19,0.72]
[1761273313602,13.48569282,192.2,192.19,0.72]
[1761273315289,10.88294223,192.2,192.19,0.72]
[1761273317411,13.48569282,192.2,192.19,0.72]
[1761273318702,10.88294223,192.2,192.19,0.72]
[1761273318900,10.88294223,192.2,192.19,5.92318434]
[1761273335323,10.16294223,192.2,192.19,19.40241014]
[1761273336306,102.0,192.25,192.2,10.87647521]
[1761273336510,2.80275059,192.26,192.2,14.1692258]
[1761273336696,3.83461952,192.25,192.21,0.69]
[1761273337108,6.43737011,192.25,192.21,0.69]
[1761273337308,0.2,192.26,192.22,5.20237228]
[1761273337523,4.03549993,192.26,192.23,0.69]
[1761273338492,4.03549993,192.26,192.24,5.20183104]
[1761273339002,4.03549993,192.26,192.25,0.69]
[1761273340015,4.03549993,192.26,192.22,5.20237228]
[1761273340222,4.03549993,192.26,192.24,0.69]
[1761273341208,4.03549993,192.26,192.24,5.89165824]
[1761273341413,0.2,192.26,192.24,5.89165824]
[1761273341618,0.2,192.26,192.25,11.55647521]
[1761273342818,0.2,192.26,192.25,13.22017262]
[1761273343022,1e-08,192.26,192.25,18.42173308]
[1761273343815,1e-08,192.26,192.25,22.26074543]
[1761273345005,0.2,192.32,192.29,10.87647521]
[1761273345204,0.2,192.32,192.31,1.66369741]
[1761273345438,0.2,192.32,192.29,10.87647521]
[1761273345599,0.2,192.32,192.31,10.87647521]
[1761273346320,0.2,192.32,192.31,0.68]
[1761273346822,0.2,192.32,192.31,5.8799376]
[1761273347015,0.2,192.32,192.31,16.75641281]
[1761273347221,0.2,192.32,192.31,18.42011022]
[1761273348925,0.2,192.32,192.31,16.75641281]
[1761273354534,0.2,192.32,192.31,18.42011022]
[1761273354847,0.2,192.32,192.31,18.94010398]
[1761273355018,0.2,192.32,192.31,18.42011022]
[1761273355214,0.2,192.32,192.31,16.75641281]
[1761273355426,0.2,192.32,192.31,18.42011022]
[1761273357164,1e-08,192.32,192.31,18.94010398]
[1761273358422,1e-08,192.32,192.31,18.42011022]
[1761273359657,1e-08,192.32,192.31,54.52011022]
[1761273360531,1e-08,192.32,192.31,18.42011022]
[1761273360928,1e-08,192.32,192.31,54.52011022]
[1761273362248,1e-08,192.32,192.31,18.42011022]
[1761273362452,1e-08,192.32,192.31,54.52011022]
[1761273364528,0.2,192.45,192.31,54.52011022]
[1761273364529,0.2,192.45,192.35,33.75647521]
[1761273364746,0.2,192.45,192.31,82.64316701]
[1761273364747,0.86,192.45,192.42,10.87647521]
[1761273364948,2.52369741,192.45,192.42,10.87647521]
[1761273365160,0.66,192.44,192.42,10.87647521]
[1761273365561,0.66,192.44,192.43,5.1966949]
[1761273365755,0.2,192.45,192.43,5.1966949]
[1761273366457,0.86,192.45,192.42,16.07342189]
[1761273366636,0.86,192.45,192.41,10.87647521]
[1761273366835,0.2,192.45,192.41,10.87647521]
[1761273367035,0.66,192.44,192.41,10.87647521]
[1761273367737,1.66369741,192.43,192.4,5.19738433]
[1761273367957,0.66,192.43,192.4,5.19738433]
[1761273369855,0.66,192.43,192.39,16.07425056]
[1761273370362,0.66,192.43,192.39,16.75425056]
[1761273370664,0.66,192.43,192.39,16.07425056]
[1761273372763,0.66,192.43,192.39,11.54647521]
[1761273374268,0.69,192.43,192.39,11.54647521]
[1761273374467,0.69,192.43,192.39,16.7441695]
[1761273375286,1.66369741,192.4,192.38,10.87647521]
[1761273375756,2.35369741,192.39,192.37,5.19807015]
[1761273375947,1.66369741,192.4,192.37,5.19807015]
[1761273377049,2.35369741,192.4,192.37,5.19807015]
[1761273379847,1.66369741,192.38,192.32,5.86966722]
[1761273380152,1.66369741,192.39,192.33,12.54017262]
[1761273380365,1.66369741,192.39,192.33,13.21017262]
[1761273380672,1.66369741,192.39,192.35,10.87647521]
[1761273381179,2.35369741,192.39,192.35,5.8686366]
[1761273381764,0.69,192.39,192.35,5.8686366]
[1761273382083,2.35369741,192.39,192.35,5.8686366]
[1761273382465,1.66369741,192.38,192.35,5.8686366]
[1761273382760,1.66369741,192.38,192.35,5.1986366]
[1761273382970,2.35369741,192.38,192.33,16.74562993]
[1761273383172,2.35369741,192.38,192.31,0.51999376]
[1761273383173,1.66369741,192.35,192.31,5.8699376]
[1761273383869,2.35369741,192.35,192.31,5.8699376]
[1761273384078,1.66369741,192.35,192.31,5.8699376]
[1761273384380,1.66369741,192.35,192.32,0.67]
[1761273385972,1.66369741,192.33,192.29,5.87024095]
[1761273386176,1.66369741,192.32,192.3,10.87647521]
[1761273387080,0.69,192.34,192.3,10.87647521]
[1761273387081,7.55363501,192.31,192.3,10.87647521]